fUSD/lending_fUSD_20240802
["ID","MTS","AMOUNT","RATE_DAILY","PERIOD"]
[333935444,1722636639097,-150.0,0.00011873,2]
[333935446,1722636639106,-150.0,0.00011875,2]
[333935448,1722636639116,-150.0,0.00011878,2]
[333935450,1722636639126,-150.0,0.0001188,2]
[333935452,1722636639135,-150.0,0.00011882,2]
[333935454,1722636639144,-150.0,0.00011883,2]
[333935456,1722636639154,-150.0,0.00011885,2]
[333935458,1722636639164,-150.0,0.00011887,2]
[333935460,1722636639173,-150.0,0.00011887,2]
[333935462,1722636639183,-150.0,0.00011889,2]
[333935464,1722636639193,-355.28,0.0001189,2]
[333935466,1722636639204,-150.0,0.00011896,2]
[333935468,1722636639216,-150.0,0.00011899,2]
[333935470,1722636639226,-150.0,0.000119,2]
[333935472,1722636639236,-150.0,0.00011901,2]
[333935474,1722636639246,-150.0,0.00011901,2]
[333935476,1722636639256,-150.0,0.00011906,2]
[333935478,1722636639266,-150.0,0.00011912,2]
[333935480,1722636639276,-150.0,0.00011914,2]
[333935482,1722636639287,-150.0,0.0001192,2]
[333935484,1722636639298,-150.0,0.00011925,2]
[333935486,1722636639307,-150.0,0.00011926,2]
[333935488,1722636639317,-150.0,0.00011932,2]
[333935490,1722636639327,-150.0,0.00011935,2]
[333935492,1722636639338,-150.0,0.00011943,2]
[333935494,1722636639348,-150.0,0.00011943,2]
[333935496,1722636639358,-150.0,0.00011946,2]
[333935498,1722636639367,-150.0,0.00011947,2]
[333935500,1722636639381,-150.0,0.00011956,2]
[333935502,1722636639391,-150.0,0.00011958,2]
[333935505,1722636639401,-150.0,0.00011961,2]
[333935507,1722636639411,-150.0,0.00011963,2]
[333935509,1722636639420,-150.0,0.00011965,2]
[333935511,1722636639430,-150.0,0.00011972,2]
[333935513,1722636639441,-150.0,0.00011973,2]
[333935515,1722636639451,-150.0,0.00011974,2]
[333935517,1722636639462,-150.0,0.00011975,2]
[333935519,1722636639472,-150.0,0.00011975,2]
[333935521,1722636639482,-150.0,0.00011979,2]
[333935523,1722636639491,-150.0,0.00011987,2]
[333935525,1722636639500,-150.0,0.00011989,2]
[333935527,1722636639510,-150.0,0.00011992,2]
[333935529,1722636639519,-150.0,0.00011993,2]
[333935531,1722636639529,-150.0,0.00011999,2]
[333935533,1722636639540,-150.0,0.00012003,2]
[333935535,1722636639550,-150.0,0.00012007,2]
[333935537,1722636639559,-150.0,0.00012008,2]
[333935539,1722636639568,-150.0,0.00012011,2]
[333935541,1722636639578,-150.0,0.00012011,2]
[333935543,1722636639587,-150.0,0.00012019,2]
[333935545,1722636639597,-150.0,0.00012021,2]
[333935547,1722636639606,-150.0,0.00012026,2]
[333935549,1722636639616,-150.0,0.00012028,2]
[333935551,1722636639625,-150.0,0.00012031,2]
[333935553,1722636639635,-150.0,0.00012032,2]
[333935555,1722636639646,-150.0,0.00012033,2]
[333935557,1722636639655,-150.0,0.00012036,2]
[333935559,1722636639665,-150.0,0.0001204,2]
[333935561,1722636639675,-150.0,0.00012041,2]
[333935563,1722636639684,-150.0,0.00012045,2]
[333935565,1722636639694,-150.0,0.00012047,2]
[333935567,1722636639704,-150.0,0.00012054,2]
[333935569,1722636639714,-150.0,0.00012058,2]
[333935571,1722636639724,-150.0,0.00012059,2]
[333935573,1722636639734,-150.0,0.00012064,2]
[333935575,1722636639744,-150.0,0.00012065,2]
[333935577,1722636639755,-150.0,0.00012065,2]
[333935579,1722636639764,-150.0,0.00012065,2]
[333935581,1722636639775,-150.0,0.00012066,2]
[333935583,1722636639784,-150.0,0.00012068,2]
[333935586,1722636639795,-150.0,0.00012069,2]
[333935588,1722636639804,-150.0,0.00012072,2]
[333935589,1722636639814,-150.0,0.00012078,2]
[333935590,1722636639823,-150.0,0.00012082,2]
[333935591,1722636639835,-4475.00096218,0.00012098,2]
[333935592,1722636639849,-724.68933544,0.00012098,2]
[333935593,1722636639861,-4787.01676865,0.00012098,2]
[333935594,1722636639872,-2490.32968586,0.00012098,2]
[333935595,1722636639883,-2222.86975057,0.00012098,2]
[333935596,1722636639895,-638.89389986,0.00012098,2]
[333935597,1722636639906,-2388.94041669,0.00012098,2]
[333935599,1722636639919,-1698.03970922,0.00012098,2]
[333935602,1722636639933,-1847.5486376,0.00012098,2]
[333935604,1722636639946,-965.47893929,0.00012098,2]
[333935606,1722636639958,-14456.26166135,0.00012098,2]
[333935609,1722636639970,-3586.07606684,0.00012098,2]
[333935744,1722636641208,-227.58642964,0.00010603,2]
[333935746,1722636641219,-226.1,0.00010959,2]
[333935748,1722636641230,-150.0,0.00011802,2]
[333935750,1722636641241,-150.0,0.00011814,2]
[333935752,1722636641251,-6.42948761,0.00011819,2]
[333935755,1722636641263,-143.57051239,0.00011819,2]
[333935757,1722636641274,-150.0,0.00011824,2]
[333935759,1722636641285,-108.14154113,0.0001183,2]
[333935761,1722636641297,-41.85845887,0.0001183,2]
[333935763,1722636641308,-150.0,0.00011833,2]
[333935765,1722636641317,-150.0,0.00011836,2]
[333935766,1722636641327,-150.0,0.00011839,2]
[333935768,1722636641337,-150.0,0.00011853,2]
[333935770,1722636641346,-150.0,0.00011865,2]
[333935772,1722636641357,-150.0,0.0001187,2]
[333935774,1722636641367,-150.0,0.0001188,2]
[333935776,1722636641376,-150.0,0.0001188,2]
[333935778,1722636641386,-150.0,0.00011882,2]
[333935780,1722636641396,-150.0,0.00011884,2]
[333935782,1722636641406,-150.0,0.00011897,2]
[333935783,1722636641416,-150.0,0.00011921,2]
[333935785,1722636641425,-150.0,0.00011921,2]
[333935787,1722636641436,-150.0,0.00011923,2]
[333935789,1722636641446,-150.0,0.00011936,2]
[333935791,1722636641456,-150.0,0.00011945,2]
[333935794,1722636641466,-150.0,0.0001196,2]
[333935796,1722636641475,-150.0,0.0001196,2]
[333935797,1722636641485,-150.0,0.00011966,2]
[333935799,1722636641495,-150.0,0.00011967,2]
[333935801,1722636641505,-150.0,0.00011968,2]
[333935803,1722636641515,-142.13258352,0.00011982,2]
[333935815,1722636641631,-150.0,0.00011877,2]
[333935817,1722636641641,-7.86741648,0.00011982,2]
[333935819,1722636641651,-150.0,0.00011985,2]
[333935821,1722636641662,-150.0,0.00011989,2]
[333935823,1722636641671,-150.0,0.00011993,2]
[333935825,1722636641681,-150.0,0.00012003,2]
[333935827,1722636641691,-150.0,0.0001201,2]
[333935829,1722636641701,-150.0,0.00012022,2]
[333935831,1722636641711,-150.0,0.00012032,2]
[333935833,1722636641720,-150.0,0.00012033,2]
[333935835,1722636641730,-150.0,0.00012034,2]
[333935837,1722636641740,-150.0,0.00012036,2]
[333935839,1722636641749,-150.0,0.00012043,2]
[333935841,1722636641759,-150.0,0.0001205,2]
[333935843,1722636641768,-150.0,0.00012051,2]
[333935845,1722636641778,-150.0,0.00012051,2]
[333935847,1722636641787,-150.0,0.00012057,2]
[333935849,1722636641797,-150.0,0.00012065,2]
[333935851,1722636641806,-150.0,0.00012082,2]
[333935853,1722636641816,-3687.24728298,0.00012098,2]
[333935855,1722636641827,-16230.36064973,0.00012098,2]
[333935857,1722636641839,-4853.09999989,0.00012098,2]
[333935859,1722636641850,-1331.9993965,0.00012098,2]
[333935861,1722636641861,-2434.77846422,0.00012098,2]
[333935863,1722636641873,-10066.03213401,0.00012098,2]
[333935866,1722636641885,-1681.25,0.00012098,2]
[333935868,1722636641897,-5198.16634652,0.00012098,2]
[333935870,1722636641908,-3455.58653241,0.00012098,2]
[333935871,1722636641919,-647.526547,0.00012098,2]
[333935872,1722636641930,-739.70005,0.00012098,2]
[333935873,1722636641950,-150.0,0.0001185,2]
[333935874,1722636641960,-150.0,0.00011867,2]
[333935875,1722636641969,-1930.6458616,0.00012098,2]
[333935876,1722636641981,-2936.09948492,0.00012098,2]
[333935877,1722636642008,-150.0,0.00011851,2]
[333935878,1722636642017,-150.0,0.00011965,2]
[333935879,1722636642027,-813.21912726,0.00012098,2]
[333935880,1722636642038,-870.40681196,0.00012098,2]
[333935881,1722636642050,-815.0,0.00012098,2]
[333935882,1722636642061,-5373.59318804,0.00012098,2]
[333935883,1722636642085,-150.0,0.00011816,2]
[333935884,1722636642095,-150.0,0.00012046,2]
[333935885,1722636642105,-120.74274223,0.00012098,2]
[333935886,1722636642118,-5966.59176036,0.00012098,2]
[333935887,1722636642202,-150.0,0.00011803,2]
[333935888,1722636642216,-150.0,0.00011833,2]
[333935889,1722636642226,-150.0,0.00011869,2]
[333935890,1722636642236,-150.0,0.00011926,2]
[333935891,1722636642246,-150.0,0.00011927,2]
[333935892,1722636642257,-150.0,0.00011961,2]
[333935893,1722636642266,-9719.46854913,0.00012098,2]
[333935894,1722636642308,-150.0,0.00012025,2]
[333935895,1722636642318,-150.0,0.0001208,2]
[333935897,1722636642329,-151.05,0.00012098,2]
[333935900,1722636642345,-1790.62822006,0.00012098,2]
[333935902,1722636642357,-387.365,0.00012098,2]
[333935904,1722636642369,-11129.60899707,0.00012098,2]
[333936126,1722636644562,-150.0,0.00011803,2]
[333936127,1722636644571,-150.0,0.00011804,2]
[333936128,1722636644582,-150.0,0.00011807,2]
[333936130,1722636644592,-150.0,0.00011809,2]
[333936131,1722636644602,-150.0,0.00011815,2]
[333936133,1722636644611,-150.0,0.00011815,2]
[333936135,1722636644621,-150.0,0.00011819,2]
[333936137,1722636644631,-150.0,0.0001182,2]
[333936139,1722636644640,-150.0,0.0001182,2]
[333936141,1722636644650,-150.0,0.00011823,2]
[333936143,1722636644660,-150.0,0.00011824,2]
[333936145,1722636644669,-150.0,0.00011826,2]
[333936147,1722636644679,-150.0,0.00011832,2]
[333936149,1722636644688,-150.0,0.00011833,2]
[333936151,1722636644697,-150.0,0.00011834,2]
[333936153,1722636644706,-150.0,0.00011838,2]
[333936155,1722636644715,-150.0,0.00011838,2]
[333936157,1722636644725,-150.0,0.00011839,2]
[333936159,1722636644734,-150.0,0.0001184,2]
[333936160,1722636644743,-150.0,0.00011844,2]
[333936162,1722636644753,-150.0,0.00011851,2]
[333936164,1722636644762,-150.0,0.00011853,2]
[333936166,1722636644772,-150.0,0.00011873,2]
[333936168,1722636644781,-150.0,0.00011879,2]
[333936170,1722636644791,-150.0,0.00011881,2]
[333936172,1722636644803,-150.0,0.00011884,2]
[333936174,1722636644813,-150.0,0.00011887,2]
[333936176,1722636644824,-150.0,0.00011889,2]
[333936178,1722636644833,-150.0,0.00011889,2]
[333936180,1722636644844,-355.28,0.0001189,2]
[333936182,1722636644854,-150.0,0.00011892,2]
[333936184,1722636644863,-150.0,0.00011901,2]
[333936186,1722636644872,-150.0,0.00011903,2]
[333936188,1722636644882,-150.0,0.00011905,2]
[333936190,1722636644892,-150.0,0.0001191,2]
[333936192,1722636644901,-150.0,0.00011911,2]
[333936194,1722636644911,-150.0,0.00011913,2]
[333936196,1722636644920,-150.0,0.00011918,2]
[333936198,1722636644930,-150.0,0.00011923,2]
[333936200,1722636644939,-150.0,0.00011923,2]
[333936202,1722636644949,-150.0,0.00011925,2]
[333936204,1722636644958,-150.0,0.00011927,2]
[333936206,1722636644968,-150.0,0.00011928,2]
[333936208,1722636644977,-150.0,0.00011929,2]
[333936210,1722636644987,-150.0,0.00011931,2]
[333936212,1722636644996,-150.0,0.00011932,2]
[333936214,1722636645006,-150.0,0.00011933,2]
[333936216,1722636645015,-150.0,0.00011934,2]
[333936218,1722636645026,-355.28,0.00011938,2]
[333936220,1722636645035,-150.0,0.00011947,2]
[333936222,1722636645044,-150.0,0.00011952,2]
[333936224,1722636645059,-150.0,0.00011959,2]
[333936226,1722636645069,-150.0,0.0001196,2]
[333936228,1722636645081,-150.0,0.00011965,2]
[333936230,1722636645091,-150.0,0.00011969,2]
[333936232,1722636645100,-150.0,0.00011971,2]
[333936234,1722636645110,-150.0,0.00011972,2]
[333936236,1722636645119,-150.0,0.00011979,2]
[333936238,1722636645129,-150.0,0.00011983,2]
[333936240,1722636645138,-150.0,0.00011984,2]
[333936242,1722636645148,-355.28,0.00011987,2]
[333936244,1722636645158,-150.0,0.00011988,2]
[333936246,1722636645168,-150.0,0.0001199,2]
[333936248,1722636645178,-355.28,0.0001199,2]
[333936250,1722636645188,-150.0,0.00011994,2]
[333936252,1722636645198,-150.0,0.00011999,2]
[333936254,1722636645208,-150.0,0.00012,2]
[333936256,1722636645221,-150.0,0.00012006,2]
[333936259,1722636645231,-150.0,0.00012007,2]
[333936261,1722636645240,-150.0,0.0001201,2]
[333936263,1722636645250,-150.0,0.00012012,2]
[333936265,1722636645260,-150.0,0.00012014,2]
[333936267,1722636645270,-150.0,0.00012015,2]
[333936280,1722636645396,-150.0,0.00012022,2]
[333936282,1722636645408,-150.0,0.00012023,2]
[333936284,1722636645418,-150.0,0.00012025,2]
[333936286,1722636645427,-150.0,0.00012025,2]
[333936288,1722636645437,-355.28,0.00012029,2]
[333936290,1722636645447,-150.0,0.00012029,2]
[333936292,1722636645457,-150.0,0.00012043,2]
[333936294,1722636645467,-150.0,0.00012044,2]
[333936296,1722636645476,-150.0,0.00012045,2]
[333936298,1722636645486,-150.0,0.00012049,2]
[333936299,1722636645496,-150.0,0.00012056,2]
[333936301,1722636645506,-150.0,0.00012062,2]
[333936303,1722636645516,-150.0,0.00012072,2]
[333936305,1722636645525,-150.0,0.00012073,2]
[333936307,1722636645535,-355.28,0.00012083,2]
[333936309,1722636645545,-355.28,0.00012088,2]
[333936311,1722636645557,-21751.3149634,0.00012098,2]
[333936314,1722636645570,-64500.0,0.00012098,2]
[333936320,1722636645622,-109.7073497,0.00011855,2]
[333936322,1722636645635,-40.2926503,0.00011855,2]
[333936324,1722636645644,-150.0,0.00011877,2]
[333936326,1722636645654,-1374.67982968,0.00012098,2]
[333936329,1722636645665,-582.74996436,0.00012098,2]
[333936331,1722636645675,-853.66356876,0.00012099,2]
[333936332,1722636645684,-1153.42724,0.00012099,2]
[333936333,1722636645693,-587.0,0.00012099,2]
[333936334,1722636645703,-150.0,0.00012099,2]
[333936335,1722636645712,-1390.0,0.000121,2]
[333936336,1722636645721,-13092.1335405,0.000121,120]
[333936337,1722636645732,-569.45266988,0.000121,120]
[333936339,1722636645743,-31076.00702896,0.000121,120]
[333936341,1722636645759,-150.0,0.00011843,2]
[333936342,1722636645768,-6117.76693714,0.000121,120]
[333936343,1722636645780,-10587.14206581,0.000121,120]
[333936344,1722636645803,-150.0,0.00011796,2]
[333936345,1722636645813,-150.0,0.00011921,2]
[333936346,1722636645824,-42048.00000033,0.000121,120]
[333936347,1722636645855,-150.0,0.00011812,2]
[333936348,1722636645864,-150.0,0.00011958,2]
[333936349,1722636645873,-150.0,0.00012058,2]
[333936350,1722636645882,-29365.53508705,0.000121,120]
[333936351,1722636645893,-2847.59268996,0.000121,120]
[333936354,1722636646677,-276.03969957,0.000121,120]
[333936355,1722636646696,-150.0,0.00011917,2]
[333936356,1722636646706,-150.0,0.00011984,2]
[333936357,1722636646715,-1245429.08646406,0.000121,120]
[333936364,1722636648310,-271.48844537,0.00010603,2]
[333936365,1722636648319,-150.0,0.00011785,2]
[333936366,1722636648329,-150.0,0.00011793,2]
[333936367,1722636648339,-150.0,0.00011795,2]
[333936368,1722636648348,-150.0,0.000118,2]
[333936369,1722636648359,-150.0,0.00011803,2]
[333936370,1722636648369,-150.0,0.00011813,2]
[333936371,1722636648380,-150.0,0.00011815,2]
[333936372,1722636648390,-150.0,0.00011823,2]
[333936373,1722636648610,-150.0,0.00011833,2]
[333936374,1722636648621,-150.0,0.00011834,2]
[333936375,1722636648631,-150.0,0.00011843,2]
[333936376,1722636648641,-150.0,0.00011844,2]
[333936377,1722636648651,-150.0,0.00011845,2]
[333936378,1722636648661,-25.95251395,0.00011845,2]
[333936379,1722636648674,-124.04748605,0.00011845,2]
[333936380,1722636648684,-150.0,0.00011848,2]
[333936381,1722636648694,-150.0,0.00011853,2]
[333936382,1722636648704,-150.0,0.00011858,2]
[333936383,1722636648714,-150.0,0.00011866,2]
[333936384,1722636648724,-150.0,0.00011869,2]
[333936385,1722636648734,-150.0,0.0001187,2]
[333936386,1722636648744,-150.0,0.00011878,2]
[333936387,1722636648754,-150.0,0.00011888,2]
[333936388,1722636648764,-150.0,0.00011898,2]
[333936389,1722636648774,-150.0,0.00011902,2]
[333936390,1722636648783,-63.93361589,0.00011906,2]
[333936391,1722636648795,-86.06638411,0.00011906,2]
[333936392,1722636648805,-150.0,0.00011907,2]
[333936393,1722636648815,-150.0,0.00011913,2]
[333936394,1722636648825,-150.0,0.00011917,2]
[333936395,1722636648834,-150.0,0.00011919,2]
[333936396,1722636648844,-150.0,0.00011919,2]
[333936397,1722636648854,-150.0,0.00011922,2]
[333936398,1722636648864,-150.0,0.00011932,2]
[333936399,1722636648873,-150.0,0.00011933,2]
[333936400,1722636648883,-150.0,0.00011938,2]
[333936401,1722636648893,-150.0,0.00011949,2]
[333936402,1722636648903,-150.0,0.0001195,2]
[333936403,1722636648913,-150.0,0.00011962,2]
[333936404,1722636648923,-150.0,0.00011962,2]
[333936405,1722636648933,-150.0,0.00011967,2]
[333936406,1722636648943,-150.0,0.0001197,2]
[333936407,1722636648953,-150.0,0.00011972,2]
[333936408,1722636648962,-150.0,0.00011973,2]
[333936409,1722636648972,-150.0,0.00011974,2]
[333936410,1722636648981,-134.98387469,0.00011981,2]
[333936411,1722636648992,-15.01612531,0.00011981,2]
[333936412,1722636649002,-150.0,0.00011981,2]
[333936413,1722636649011,-150.0,0.00011983,2]
[333936414,1722636649021,-150.0,0.00011986,2]
[333936415,1722636649031,-150.0,0.00011987,2]
[333936416,1722636649041,-150.0,0.00011995,2]
[333936417,1722636649050,-150.0,0.00012,2]
[333936418,1722636649060,-150.0,0.00012007,2]
[333936419,1722636649070,-150.0,0.00012013,2]
[333936420,1722636649080,-150.0,0.00012013,2]
[333936421,1722636649090,-150.0,0.00012014,2]
[333936422,1722636649099,-150.0,0.00012015,2]
[333936423,1722636649109,-150.0,0.00012019,2]
[333936424,1722636649119,-150.0,0.00012027,2]
[333936425,1722636649129,-150.0,0.0001203,2]
[333936426,1722636649138,-150.0,0.00012034,2]
[333936427,1722636649147,-150.0,0.0001204,2]
[333936428,1722636649157,-150.0,0.00012042,2]
[333936429,1722636649166,-150.0,0.00012047,2]
[333936430,1722636649176,-150.0,0.00012048,2]
[333936431,1722636649186,-150.0,0.00012048,2]
[333936432,1722636649196,-150.0,0.00012048,2]
[333936433,1722636649206,-150.0,0.00012049,2]
[333936434,1722636649219,-150.0,0.0001205,2]
[333936435,1722636649229,-150.0,0.0001205,2]
[333936436,1722636649238,-150.0,0.00012057,2]
[333936437,1722636649248,-150.0,0.00012057,2]
[333936438,1722636649258,-150.0,0.00012061,2]
[333936439,1722636649268,-150.0,0.00012064,2]
[333936440,1722636649278,-355.28,0.00012088,2]
[333936441,1722636649288,-355.28,0.00012088,2]
[333936442,1722636649301,-355.28,0.00012088,2]
[333936443,1722636649311,-355.28,0.00012088,2]
[333936444,1722636649322,-355.28,0.00012088,2]
[333936445,1722636649332,-355.28,0.00012088,2]
[333936446,1722636649342,-355.28,0.00012088,2]
[333936447,1722636649352,-355.28,0.00012088,2]
[333936448,1722636649362,-355.28,0.00012088,2]
[333936449,1722636649373,-355.28,0.00012088,2]
[333936450,1722636649382,-3307.48662561,0.000121,120]
[333936451,1722636649395,-371.9075,0.000121,120]
[333936452,1722636649406,-513.79607587,0.000121,120]
[333936453,1722636649439,-150.0,0.00011955,2]
[333936454,1722636649449,-150.0,0.00011959,2]
[333936455,1722636649460,-150.0,0.00012038,2]
[333936456,1722636649470,-1261.97958983,0.000121,120]
[333936457,1722636649483,-1367.10741342,0.000121,120]
[333936458,1722636649494,-32540.68456682,0.000121,120]
[333936459,1722636649506,-18666.72537751,0.000121,120]
[333936460,1722636649519,-1256.00964337,0.000121,120]
[333936461,1722636649531,-1270.92597236,0.000121,120]
[333936462,1722636649543,-1051.96977662,0.000121,120]
[333936463,1722636649555,-1752.76552641,0.000121,120]
[333936464,1722636649568,-575.55197003,0.000121,120]
[333936465,1722636649600,-150.0,0.00011994,2]
[333936466,1722636649610,-150.0,0.00012027,2]
[333936467,1722636649620,-355.28,0.00012088,2]
[333936468,1722636649630,-128.80495585,0.000121,120]
[333936469,1722636649643,-877.554818,0.000121,120]
[333936470,1722636649655,-354.37716682,0.000121,120]
[333936471,1722636649681,-150.0,0.00011825,2]
[333936472,1722636649691,-150.0,0.000119,2]
[333936473,1722636649701,-150.0,0.00012061,2]
[333936474,1722636649712,-198.14925961,0.000121,120]
[333936475,1722636649725,-11418.79015801,0.000121,120]
[333936476,1722636649736,-11935.756325,0.000121,120]
[333936477,1722636649749,-5571.95690293,0.000121,120]
[333936478,1722636649779,-150.0,0.00011809,2]
[333936479,1722636649789,-150.0,0.0001195,2]
[333936480,1722636649799,-114.36,0.000121,120]
[333936481,1722636649814,-4219.06673075,0.000121,120]
[333936482,1722636649826,-125262.4333922,0.000121,120]
[333936483,1722636649839,-1407.31275459,0.000121,120]
[333936484,1722636736195,38.94938355,8.745e-05,2]
[333936485,1722636736216,124.74061645,8.745e-05,2]
[333936487,1722636774367,25.25938355,8.745e-05,2]
[333936488,1722636774390,155.50533946,8.745e-05,2]
[333936489,1722636774414,227.58642964,8.745e-05,2]
[333936490,1722636774437,4670.4765381,8.745e-05,2]
[333936491,1722636795979,227.58642964,8.745e-05,2]
[333936492,1722636799258,215.65287238,8.745e-05,2]
[333936493,1722636808413,786.7,9.009e-05,2]
[333936494,1722636848062,200.88294081,8.745e-05,2]
[333936495,1722636883537,227.58642964,9.009e-05,2]
[333936496,1722636942375,150.43,8.601e-05,2]
[333936498,1722636988542,227.58642964,8.601e-05,2]
[333936499,1722637098583,227.58642964,8.601e-05,2]
[333936500,1722637186571,227.58642964,8.601e-05,2]
[333936502,1722637299576,150.0,8.601e-05,2]
[333936503,1722637299604,77.58642964,8.601e-05,2]
[333936504,1722637332974,72.41357036,8.886e-05,2]
[333936505,1722637332996,238.26236443,8.886e-05,2]
[333936506,1722637333019,436.68406521,8.886e-05,2]
[333936507,1722637396563,227.58642964,8.886e-05,2]
[333936508,1722637407703,155.50533946,8.886e-05,2]
[333936509,1722637479296,227.58642964,8.886e-05,2]
[333936511,1722637555312,495.79702961,6.94e-05,2]
[333936512,1722637585591,227.58642964,8.886e-05,2]
[333936513,1722637593576,227.58642964,6.94e-05,2]
[333936514,1722637627263,184.09263655,8.412e-05,2]
[333936515,1722637639083,227.58642964,8.412e-05,2]
[333936517,1722637793915,709.99,8.219e-05,2]
[333936553,1722637831706,-300.0,9.879e-05,2]
[333936554,1722637831716,-260.36,9.88e-05,2]
[333936555,1722637831725,-81.07342479,9.88e-05,2]
[333936556,1722637831736,-324.47998558,9.88e-05,2]
[333936557,1722637831748,-17711.44816338,9.88e-05,2]
[333936558,1722637831759,-2451.07842625,9.88e-05,2]
[333936559,1722637831769,-374.77689865,0.0001,2]
[333936560,1722637831779,-168.16,0.00010061,2]
[333936561,1722637831788,-250.53909465,0.0001047,2]
[333936562,1722637831800,-459.45090535,0.0001047,2]
[333936563,1722637831809,-150.0,0.00010503,2]
[333936564,1722637831819,-9.69904038,0.00010504,2]
[333936565,1722637831830,-716.18874666,0.00010504,2]
[333936566,1722637831850,-14748.23901296,0.00010504,2]
[333936567,1722637831863,-304.51413803,0.00010603,2]
[333936568,1722637831872,-2838.6219248,0.00010603,2]
[333936569,1722637831882,-500.0,0.000107,3]
[333936570,1722637831894,-212.02,0.00010719,2]
[333936571,1722637831904,-1512.12,0.00010733,2]
[333936572,1722637831914,-183.11,0.00010739,2]
[333936573,1722637831924,-193.51,0.00010746,2]
[333936574,1722637831934,-159.12,0.00010746,2]
[333936575,1722637831944,-4872.07518634,0.00010761,2]
[333936576,1722637831954,-485.65,0.00010776,2]
[333936577,1722637831964,-159.12,0.00010799,2]
[333936578,1722637831974,-1000.0,0.000108,3]
[333936579,1722637831983,-180.0,0.00010822,2]
[333936580,1722637831993,-265.0,0.00010867,2]
[333936581,1722637832002,-892.0,0.0001089,2]
[333936582,1722637832012,-1500.0,0.000109,3]
[333936583,1722637832022,-2906.85952845,0.000109,2]
[333936584,1722637832032,-463.80340462,0.000109,2]
[333936585,1722637832041,-366.52794508,0.00010905,2]
[333936586,1722637832051,-471.2805042,0.00010905,2]
[333936587,1722637832060,-219.84,0.00010935,2]
[333936588,1722637832070,-590.08,0.00010935,2]
[333936589,1722637832079,-499.99,0.00010935,2]
[333936590,1722637832089,-250.0,0.00010959,2]
[333936592,1722637832098,-188.42,0.00010959,2]
[333936594,1722637832109,-157.02,0.00010959,2]
[333936596,1722637832119,-785.1,0.00010959,2]
[333936597,1722637832128,-1006.0960382,0.0001099,2]
[333936599,1722637832139,-209.42742896,0.00010997,2]
[333936600,1722637832148,-4185.82814701,0.00010998,2]
[333936601,1722637832171,-826.29867666,0.00010998,2]
[333936602,1722637832182,-412.61335126,0.00010998,2]
[333936603,1722637832194,-1158.32158063,0.00010998,2]
[333936604,1722637832203,-3943.06335194,0.00010999,2]
[333936605,1722637832229,-6547.0222485,0.00010999,2]
[333936606,1722637832240,-6231.0,0.00010999,2]
[333936607,1722637832250,-3112.3427,0.00010999,2]
[333936608,1722637832282,-4082.05851106,0.00010999,2]
[333936609,1722637832293,-505.38615579,0.00010999,2]
[333936610,1722637832305,-850.40212826,0.00010999,2]
[333936611,1722637832593,227.58642964,8.412e-05,2]
[333936614,1722637837516,-372.10895744,0.00010196,2]
[333936615,1722637837526,-2570.89891576,0.00010196,2]
[333936616,1722637837536,-69.81991666,0.0001079,2]